bitfinex/quotes_SOLUSD_20241218
["timestamp","ask_amount","ask_price","bid_price","bid_amount"]
[1734554028631,46.59850707,209.47,209.36,46.59850707]
[1734554028937,46.59850707,209.47,209.39,20.0]
[1734554029120,46.59850707,209.55,209.4,0.71602054]
[1734554029314,46.59850707,209.55,209.41,0.12549]
[1734554029643,46.59850707,209.55,209.44,46.59850707]
[1734554029823,46.59850707,209.55,209.46,46.59850707]
[1734554030019,46.59850707,209.48,209.32,46.59850707]
[1734554030345,46.59850707,209.33,209.17,11.9519]
[1734554030641,8.2867,209.43,209.25,12.6640255]
[1734554030827,8.2867,209.43,209.26,0.12549]
[1734554031030,8.2867,209.43,209.25,36.5588255]
[1734554031031,7.5524,209.55,209.28,0.12549]
[1734554031328,7.5524,209.55,209.3,0.12549]
[1734554031648,46.59850707,209.53,209.43,46.59850707]
[1734554031835,46.59850707,209.49,209.41,46.59850707]
[1734554032040,7.5524,209.55,209.5,20.0]
[1734554032344,46.59850707,209.62,209.55,20.0]
[1734554032517,54.15090707,209.65,209.56,46.59850707]
[1734554032844,46.59850707,209.63,209.54,46.59850707]
[1734554033039,46.59850707,209.61,209.55,20.0]
[1734554033226,7.5524,209.65,209.57,20.0]
[1734554033430,46.59850707,209.71,209.62,46.59850707]
[1734554033745,46.59850707,209.73,209.63,0.7152505]
[1734554033942,46.59850707,209.71,209.63,0.7152505]
[1734554034443,46.59850707,209.69,209.62,20.0]
[1734554034626,46.59850707,209.71,209.62,46.59850707]
[1734554034951,46.59850707,209.73,209.64,46.59850707]
[1734554035245,7.5197,209.75,209.64,46.59850707]
[1734554035246,54.11820707,209.75,209.65,20.0]
[1734554035446,54.11820707,209.75,209.69,20.0]
[1734554035634,7.5197,209.75,209.69,20.0]
[1734554035836,46.59850707,209.77,209.69,20.0]
[1734554036056,46.59850707,209.77,209.64,20.0]
[1734554036221,46.59850707,209.77,209.53,23.862]
[1734554036222,0.12549,209.74,209.59,46.59850707]
[1734554036419,46.59850707,209.63,209.55,46.59850707]
[1734554036619,46.59850707,209.63,209.53,46.59850707]
[1734554036821,0.12549,209.58,209.49,46.59850707]
[1734554037031,46.59850707,209.57,209.47,46.59850707]
[1734554037249,13.0387,209.62,209.54,46.59850707]
[1734554037418,58.63530707,209.72,209.61,46.59850707]
[1734554037617,46.59850707,209.75,209.62,0.71524488]
[1734554037823,46.59850707,209.75,209.5,11.9331]
[1734554038044,46.59850707,209.75,209.64,46.59850707]
[1734554038320,46.59850707,209.73,209.67,20.0]
[1734554038521,0.12549,209.7,209.65,20.0]
[1734554038822,0.12549,209.66,209.58,46.59850707]
[1734554039044,0.12549,209.61,209.5,11.9331]
[1734554039243,0.12549,209.61,209.51,46.59850707]
[1734554039438,0.12549,209.61,209.49,46.59850707]
[1734554039439,23.776884,209.57,209.49,46.59850707]
[1734554039638,23.776884,209.57,209.47,46.59850707]
[1734554039639,23.776884,209.55,209.47,46.59850707]
[1734554039843,23.776884,209.53,209.43,46.59850707]
[1734554040035,66.59850707,209.5,209.41,46.59850707]
[1734554040351,23.902374,209.49,209.42,46.59850707]
[1734554040535,23.776884,209.47,209.38,46.59850707]
[1734554040734,23.776884,209.49,209.4,46.59850707]
[1734554040933,46.59850707,209.5,209.4,46.59850707]
[1734554041131,46.59850707,209.54,209.44,46.59850707]
[1734554041337,46.59850707,209.52,209.44,46.59850707]
[1734554041531,46.59850707,209.56,209.46,46.59850707]
[1734554041727,7.7474,209.68,209.47,0.71586887]
[1734554041928,7.7474,209.68,209.65,46.59850707]
[1734554042152,12.7636,209.72,209.65,46.59850707]
[1734554042343,6.94441281,209.77,209.71,46.59850707]
[1734554042543,6.94441281,209.77,209.76,46.59850707]
[1734554042742,23.8164,209.94,209.76,46.59850707]
[1734554042743,54.34590707,209.89,209.79,20.0]
[1734554042953,6.94441281,209.92,209.85,46.59850707]
[1734554043655,9.02e-05,209.86,209.85,46.59850707]
[1734554044742,9.02e-05,209.86,209.85,47.31311655]
[1734554044929,9.02e-05,209.86,209.85,93.91162362]
[1734554045257,12.6343,210.03,209.9,46.59850707]
[1734554045430,46.59850707,209.96,209.81,11.9151]
[1734554045636,46.59850707,209.89,209.73,0.71453757]
[1734554045846,0.12549,209.86,209.78,46.59850707]
[1734554046158,0.84628131,210.02,209.84,46.59850707]
[1734554046454,0.84628131,210.02,209.85,0.71468545]
[1734554046648,0.84628131,210.02,209.8,0.71450062]
[1734554046845,0.84628131,210.02,209.79,2.85993205]
[1734554047044,0.12549,209.97,209.68,0.71465572]
[1734554047357,0.12549,209.8,209.72,46.59850707]
[1734554047548,0.12549,209.8,209.53,23.09495657]
[1734554047549,46.59850707,209.73,209.47,7.2954679]
[1734554047854,0.12549,209.63,209.59,46.59850707]
[1734554048058,23.776884,209.76,209.48,0.71569422]
[1734554048263,23.776884,209.76,209.49,0.71532023]
[1734554049036,23.776884,209.76,209.6,2.87402124]
[1734554049549,46.59850707,209.72,209.62,46.59850707]
[1734554049733,46.59850707,209.7,209.6,49.47252831]
[1734554049937,46.59850707,209.72,209.62,46.59850707]
[1734554050278,0.12549,209.63,209.55,46.59850707]
[1734554050569,0.12549,209.58,209.48,49.50642926]
[1734554050770,46.59850707,209.57,209.48,46.59850707]
[1734554050949,46.59850707,209.59,209.48,46.59850707]
[1734554051129,46.59850707,209.53,209.44,46.59850707]
[1734554051335,0.12549,209.48,209.4,46.59850707]
[1734554051542,46.59850707,209.49,209.4,46.59850707]
[1734554051741,12.0328,209.57,209.44,46.59850707]
[1734554051742,46.59850707,209.53,209.44,46.59850707]
[1734554052037,46.59850707,209.6,209.5,46.59850707]
[1734554052348,46.59850707,209.6,209.42,11.9373]
[1734554052349,59.71100707,209.65,209.54,46.59850707]
[1734554052563,46.59850707,209.61,209.51,46.59850707]
[1734554052838,13.1125,209.65,209.41,46.59850707]
[1734554052839,0.12549,209.52,209.41,46.59850707]
[1734554053064,13.1125,209.65,209.42,0.71606715]
[1734554053580,13.1125,209.65,209.43,0.12549]
[1734554053742,7.8695,209.68,209.44,0.71580411]
[1734554053938,13.1486,209.74,209.47,0.12549]
[1734554054166,13.1486,209.74,209.48,0.715328]
[1734554054364,46.59850707,209.59,209.49,46.59850707]
[1734554054536,0.12549,209.54,209.45,46.59850707]
[1734554054733,46.59850707,209.5,209.41,2.89330465]
[1734554055037,46.59850707,209.48,209.41,2.89330465]
[1734554055239,46.59850707,209.5,209.41,46.59850707]
[1734554055474,46.59850707,209.44,209.35,46.59850707]
[1734554055779,46.59850707,209.42,209.36,0.87341012]
[1734554056075,59.74710707,209.55,209.36,0.87341012]
[1734554056282,0.12549,209.37,209.36,0.87341012]
[1734554056442,46.59850707,209.4,209.36,0.87341012]
[1734554056774,46.59850707,209.38,209.36,0.87341012]
[1734554057396,0.12549,209.37,209.36,0.87341012]
[1734554057542,46.59850707,209.38,209.33,0.6002419]
[1734554057748,46.59850707,209.36,209.33,0.6002419]
[1734554058468,46.59850707,209.34,209.33,0.6002419]
[1734554058674,46.59850707,209.36,209.33,0.6002419]
[1734554058844,46.59850707,209.4,209.33,0.6002419]
[1734554059048,46.59850707,209.38,209.33,0.6002419]
[1734554059377,0.12549,209.37,209.33,0.6002419]
[1734554059741,46.72399707,209.34,209.33,0.6002419]
[1734554059981,46.59850707,209.4,209.33,0.6002419]
[1734554060165,2.79487813,209.52,209.33,0.6002419]
[1734554060166,46.59850707,209.44,209.33,0.6002419]
[1734554060371,0.12549,209.34,209.33,0.6002419]
[1734554060577,0.12549,209.34,209.24,100.0]
[1734554060749,46.72399707,209.25,209.24,100.0]
[1734554061282,46.59850707,209.26,209.24,100.0]
[1734554061784,46.59850707,209.26,209.24,91.6667]
[1734554061785,23.902374,209.25,209.24,91.6667]
[1734554062083,23.902374,209.25,209.24,70.0001]
[1734554062377,46.59850707,209.26,209.24,70.0001]
[1734554062743,23.776884,209.25,209.24,70.0001]
[1734554062945,30.0,209.44,209.24,70.0001]
[1734554063261,46.72399707,209.25,209.24,70.0001]
[1734554063702,46.59850707,209.25,209.12,0.6002419]
[1734554063900,46.59850707,209.14,209.12,0.6002419]
[1734554064215,35.8234,209.36,209.12,0.6002419]
[1734554064216,46.59850707,209.17,209.12,0.6002419]
[1734554064380,46.59850707,209.19,209.12,0.6002419]
[1734554064579,46.59850707,209.17,209.12,0.6002419]
[1734554064814,0.12549,209.16,209.12,0.6002419]
[1734554065001,46.59850707,209.24,209.14,46.59850707]
[1734554065184,46.59850707,209.3,209.2,46.59850707]
[1734554065385,46.59850707,209.32,209.24,46.59850707]
[1734554065628,46.59850707,209.29,209.2,46.59850707]
[1734554065783,30.0,209.4,209.12,0.6002419]
[1734554065784,30.0,209.32,209.12,0.6002419]
[1734554066135,11.944,209.31,209.12,0.6002419]
[1734554066586,23.776884,209.3,209.12,0.6002419]
[1734554066786,46.59850707,209.17,209.12,0.6002419]
[1734554067026,46.59850707,209.13,209.12,0.6002419]
[1734554067313,23.902374,209.12,209.04,100.0]
[1734554067520,46.59850707,209.06,209.04,100.0]
[1734554068024,23.776884,209.05,209.04,100.0]
[1734554068327,46.59850707,209.06,209.04,100.0]
[1734554069396,0.12549,209.05,209.04,100.0]
[1734554069597,46.09850707,209.06,209.04,100.0]
[1734554069785,46.59850707,209.06,209.04,100.0]
[1734554070526,24.063484,209.05,209.04,100.0]
[1734554070824,0.2866,209.05,209.04,100.0]
[1734554070996,0.2866,209.05,209.04,146.59850707]
[1734554071215,46.59850707,209.12,209.04,100.0]
[1734554071644,46.59850707,209.1,209.04,100.0]
[1734554071806,46.59850707,209.05,209.04,100.0]
[1734554072225,46.59850707,209.07,209.04,100.0]
[1734554072424,0.12549,209.05,209.04,100.0]
[1734554072736,46.59850707,209.07,209.04,100.0]
[1734554072934,70.37539107,209.05,209.04,100.0]
[1734554073122,46.72399707,209.05,209.04,100.0]
[1734554073445,46.59850707,209.07,209.04,100.0]
[1734554073953,46.59850707,209.13,209.05,46.59850707]
[1734554074120,27.44484981,209.25,209.07,46.59850707]
[1734554074121,46.59850707,209.17,209.07,46.59850707]
[1734554074322,46.59850707,209.14,209.04,100.0]
[1734554074518,46.59850707,209.06,209.04,100.0]
[1734554075048,0.12549,209.05,209.04,100.0]
[1734554075419,23.902374,209.05,209.04,100.0]
[1734554076243,23.902374,209.05,209.04,99.8746]
[1734554076439,70.50088107,209.05,208.91,0.6002419]
[1734554076626,46.72399707,208.92,208.91,0.6002419]
[1734554076822,70.50088107,208.92,208.91,0.6002419]
[1734554077213,70.37539107,208.92,208.91,0.6002419]
[1734554077445,70.50088107,208.92,208.91,0.6002419]
[1734554078128,117.09938814,208.92,208.91,0.6002419]
[1734554078724,117.09938814,208.92,208.91,4.19e-05]
[1734554079125,23.776884,208.9,208.7,47.19874897]
[1734554079358,46.59850707,208.78,208.7,47.19874897]
[1734554079723,46.59850707,208.76,208.7,0.6002419]
[1734554080053,46.59850707,208.72,208.7,0.6002419]
[1734554080431,46.59850707,208.72,208.7,0.575933]
[1734554080432,23.776884,208.71,208.7,0.575933]
[1734554080768,46.59850707,208.72,208.7,0.575933]
[1734554081066,59.87210707,208.89,208.71,46.59850707]
[1734554081229,11.9643,208.96,208.72,0.12549]
[1734554081432,11.9643,208.96,208.7,1.29419162]
[1734554081735,2.91209962,208.95,208.7,0.575933]
[1734554081952,32.91209962,208.95,208.7,0.575933]
[1734554082128,46.59850707,208.86,208.77,46.59850707]
[1734554082331,46.59850707,208.92,208.82,46.59850707]
[1734554082535,46.59850707,208.9,208.82,46.59850707]
[1734554082864,46.59850707,208.88,208.78,46.59850707]
[1734554083071,46.59850707,208.86,208.76,46.59850707]
[1734554083374,11.9622,208.99,208.72,11.9773]
[1734554083375,46.59850707,208.84,208.74,46.59850707]
[1734554083533,0.12549,208.86,208.77,46.59850707]
[1734554083736,11.9622,208.99,208.75,46.59850707]
[1734554083737,23.902374,208.84,208.75,46.59850707]
[1734554084069,46.59850707,208.83,208.73,46.59850707]
[1734554084255,46.59850707,208.76,208.7,0.575933]
[1734554084458,46.59850707,208.78,208.7,0.575933]
[1734554084627,46.59850707,208.76,208.7,0.575933]
[1734554084826,0.12549,208.71,208.7,0.575933]
[1734554085043,30.0,208.83,208.7,0.575933]
[1734554085044,46.59850707,208.89,208.7,0.575933]
[1734554085329,46.59850707,208.81,208.71,46.59850707]
[1734554085552,23.776884,208.85,208.7,0.575933]
[1734554085553,46.59850707,208.77,208.7,0.575933]
[1734554085748,46.59850707,208.75,208.7,0.575933]
[1734554086143,46.59850707,208.73,208.7,0.575933]
[1734554086348,46.59850707,208.71,208.7,0.575933]
[1734554087266,46.72399707,208.71,208.7,0.575933]
[1734554087481,46.59850707,208.71,208.7,0.575933]
[1734554088138,46.72399707,208.71,208.7,0.575933]
[1734554088952,12.10439,208.7,208.54,100.0]
[1734554089251,46.59850707,208.6,208.54,100.0]
[1734554089455,46.59850707,208.62,208.54,100.0]
[1734554089765,46.59850707,208.64,208.55,46.59850707]
[1734554089937,46.59850707,208.68,208.59,46.59850707]
[1734554090142,46.59850707,208.63,208.55,46.59850707]
[1734554090369,46.59850707,208.63,208.54,100.0]
[1734554090576,46.59850707,208.64,208.55,46.59850707]
[1734554090745,46.59850707,208.64,208.54,100.0]
[1734554090946,46.59850707,208.61,208.54,100.0]
[1734554091139,46.59850707,208.57,208.54,100.0]
[1734554091565,46.59850707,208.55,208.54,100.0]
[1734554092169,70.37539107,208.55,208.36,8.1945]
[1734554092480,46.59850707,208.53,208.42,46.59850707]
[1734554092678,49.52674835,208.67,208.49,46.59850707]
[1734554093044,49.52674835,208.67,208.48,12.6312107]
[1734554093045,46.59850707,208.54,208.48,0.6401107]
[1734554093464,46.59850707,208.5,208.48,0.6401107]
[1734554094039,0.12549,208.47,208.29,0.71964001]
[1734554094240,46.59850707,208.34,208.26,0.6401107]
[1734554094558,46.59850707,208.36,208.26,47.23861777]
[1734554095181,46.59850707,208.42,208.32,46.59850707]
[1734554095472,46.59850707,208.42,208.27,0.7200485]
[1734554095473,46.59850707,208.41,208.33,46.59850707]
[1734554095778,46.59850707,208.36,208.27,58.60210707]
[1734554095962,46.59850707,208.34,208.26,0.6401107]
[1734554096344,46.59850707,208.38,208.28,46.59850707]
[1734554096545,46.59850707,208.36,208.26,47.23861777]
[1734554096985,46.59850707,208.34,208.26,0.6401107]
[1734554097162,46.59850707,208.35,208.26,0.6401107]
[1734554097475,46.59850707,208.35,208.26,47.23861777]
[1734554097687,46.59850707,208.37,208.28,46.59850707]
[1734554097989,46.59850707,208.48,208.36,46.59850707]
[1734554098164,12.5715,208.59,208.35,46.59850707]
[1734554098165,46.59850707,208.45,208.35,46.59850707]
[1734554098489,46.59850707,208.43,208.33,46.59850707]
[1734554098697,46.59850707,208.47,208.38,23.776884]
[1734554098853,46.59850707,208.43,208.33,46.59850707]
[1734554099371,46.59850707,208.4,208.34,23.776884]
[1734554099577,46.59850707,208.4,208.32,26.59571668]
[1734554099758,46.59850707,208.46,208.35,46.59850707]
[1734554099960,46.59850707,208.44,208.35,46.59850707]
[1734554100176,46.59850707,208.44,208.36,23.776884]
[1734554100379,46.59850707,208.42,208.34,23.776884]
[1734554100587,46.59850707,208.42,208.33,70.37539107]
[1734554100893,46.59850707,208.48,208.4,23.776884]
[1734554101063,46.59850707,208.5,208.42,23.776884]
[1734554101263,46.59850707,208.56,208.47,46.59850707]
[1734554101580,46.59850707,208.62,208.53,46.59850707]
[1734554101792,46.59850707,208.67,208.47,23.776884]
[1734554101992,46.59850707,208.49,208.38,8.1927]
[1734554102161,58.57950707,208.67,208.38,8.1927]
[1734554102162,0.12549,208.59,208.38,8.1927]
[1734554102365,6.68635947,208.58,208.38,8.1927]
[1734554102565,11.9829,208.63,208.39,11.9967]
[1734554102871,2.91671348,208.62,208.39,11.9967]
[1734554103072,46.59850707,208.67,208.41,0.12549]
[1734554103266,46.59850707,208.67,208.57,46.59850707]
[1734554103588,46.59850707,208.59,208.49,13.2084]
[1734554103772,46.59850707,208.56,208.48,46.59850707]
[1734554103971,2.82170652,208.75,208.47,3.57169913]
[1734554104184,2.82170652,208.75,208.5,0.12549]
[1734554104502,80.5564651,208.78,208.47,3.57149157]
[1734554104676,80.5564651,208.78,208.55,20.0]
[1734554104875,65.76765607,208.78,208.58,0.12549]
[1734554105100,46.59850707,208.67,208.58,46.59850707]
[1734554105499,46.59850707,208.73,208.64,46.59850707]
[1734554105678,46.59850707,208.77,208.69,23.776884]
[1734554105878,46.59850707,208.75,208.66,46.59850707]
[1734554106073,46.59850707,208.89,208.68,0.12549]
[1734554106294,58.67,208.95,208.68,0.71846445]
[1734554106487,58.67,208.95,208.67,43.776884]
[1734554106488,2.8183274,208.93,208.67,43.776884]
[1734554106684,30.0,208.88,208.57,0.71846445]
[1734554107014,46.59850707,208.7,208.65,23.776884]
[1734554107301,46.59850707,208.71,208.62,46.59850707]
[1734554107503,46.59850707,208.89,208.71,23.776884]
[1734554108115,46.59850707,208.89,208.72,0.12549]
[1734554108288,19.156258,208.92,208.74,8.16119]
[1734554108483,19.156258,208.92,208.82,20.0]
[1734554108683,19.156258,208.92,208.84,23.776884]
[1734554108883,2.94370142,209.05,208.84,23.776884]
[1734554109099,46.59850707,208.97,208.88,46.59850707]
[1734554109411,46.59850707,208.99,208.88,46.59850707]
[1734554109712,46.59850707,209.03,208.94,46.59850707]
[1734554110012,47.23861777,209.04,208.95,46.59850707]
[1734554110216,0.6401107,209.04,209.01,46.59850707]
[1734554110383,0.6401107,209.04,208.98,23.776884]
[1734554110789,46.59850707,209.02,208.94,54.63420707]
[1734554110986,46.59850707,208.96,208.84,0.71775658]
[1734554111309,46.59850707,208.85,208.76,46.59850707]
[1734554111519,20.0,208.99,208.8,46.59850707]
[1734554111809,46.59850707,208.88,208.8,46.59850707]
[1734554112015,46.59850707,208.84,208.76,7.9303]
[1734554112219,46.59850707,208.78,208.66,46.59850707]
[1734554112515,46.59850707,208.78,208.56,58.58520707]
[1734554112516,46.59850707,208.68,208.56,58.58520707]
[1734554112729,46.59850707,208.64,208.54,7.9303]
[1734554113038,46.59850707,208.58,208.54,7.9303]
[1734554113327,46.59850707,208.64,208.55,46.59850707]
[1734554113534,46.59850707,208.62,208.54,7.9303]
[1734554113709,46.59850707,208.6,208.54,7.9303]
[1734554113910,46.59850707,208.64,208.54,7.9303]
[1734554114114,46.59850707,208.78,208.55,0.84446692]
[1734554114419,11.9688,208.88,208.55,0.84446692]
[1734554114608,41.9688,208.88,208.57,0.12549]
[1734554114813,6.68635947,208.88,208.59,20.0]
[1734554115026,12.4853,208.93,208.61,0.12549]
[1734554115234,30.0,208.98,208.59,20.0]
[1734554115235,46.59850707,208.86,208.78,46.59850707]
[1734554115420,46.59850707,208.92,208.83,20.0]
[1734554115625,46.59850707,208.96,208.86,46.59850707]
[1734554115832,46.59850707,209.02,208.93,20.0]
[1734554116135,0.6401107,209.04,208.87,20.0]
[1734554116359,0.6401107,209.04,208.96,23.776884]
[1734554116633,0.6401107,209.04,208.93,23.776884]
[1734554116829,0.6401107,209.04,208.97,23.902374]
[1734554117034,0.6401107,209.04,208.97,23.776884]
[1734554117215,46.59850707,209.15,209.04,23.902374]
[1734554117413,46.59850707,209.15,209.05,47.31574141]
[1734554117623,46.59850707,209.11,209.04,20.0]
[1734554117828,46.59850707,209.11,209.02,23.776884]
[1734554118041,46.59850707,209.22,209.02,23.776884]
[1734554118209,0.6401107,209.26,209.09,20.0]
[1734554118410,0.6401107,209.26,209.02,23.776884]
[1734554118610,0.6401107,209.26,209.06,11.9582]
[1734554119137,46.59850707,209.14,209.04,46.59850707]
[1734554119441,46.59850707,209.2,209.11,20.0]
[1734554119612,46.59850707,209.22,209.15,20.0]
[1734554119938,47.23861777,209.26,209.18,46.59850707]
[1734554120184,47.23861777,209.26,209.16,70.37539107]
[1734554120386,47.23861777,209.26,209.18,46.59850707]
[1734554120387,0.6401107,209.26,209.18,46.59850707]
[1734554120560,0.6401107,209.26,209.22,46.59850707]
[1734554120762,0.6401107,209.26,209.23,46.59850707]
[1734554120962,0.6401107,209.26,209.25,46.59850707]
[1734554121187,49.47533312,209.44,209.25,46.59850707]
[1734554121188,46.59850707,209.37,209.25,46.72399707]
[1734554121396,46.59850707,209.44,209.25,46.72399707]
[1734554121397,46.59850707,209.44,209.36,20.0]
[1734554121559,0.6401107,209.49,209.3,23.902374]
[1734554121758,46.59850707,209.48,209.38,46.59850707]
[1734554121986,46.59850707,209.48,209.4,46.59850707]
[1734554122163,46.59850707,209.46,209.36,46.59850707]
[1734554122365,0.6401107,209.49,209.42,46.59850707]
[1734554122577,47.23861777,209.49,209.4,46.59850707]
[1734554122775,47.23861777,209.49,209.42,46.59850707]
[1734554122776,0.4871324,209.49,209.42,46.59850707]
[1734554122997,0.4871324,209.49,209.44,46.59850707]
[1734554123196,0.4871324,209.49,209.46,46.59850707]
[1734554123361,46.59850707,209.62,209.49,0.12549]
[1734554123693,46.59850707,209.64,209.56,46.59850707]
[1734554123913,46.59850707,209.6,209.5,46.59850707]
[1734554124071,46.59850707,209.6,209.44,54.20960707]
[1734554124072,46.59850707,209.56,209.46,46.59850707]
[1734554124401,46.59850707,209.47,209.39,2.80911635]
[1734554124610,46.59850707,209.45,209.36,46.59850707]
[1734554124774,36.4894321,209.71,209.32,8.2645]
[1734554124775,46.59850707,209.39,209.32,8.2645]
[1734554124973,46.59850707,209.36,209.32,8.2645]
[1734554125177,46.59850707,209.34,209.22,46.59850707]
[1734554125369,46.59850707,209.28,209.2,8.2645]
[1734554125874,66.59850707,209.44,209.14,46.59850707]
[1734554125875,46.59850707,209.23,209.14,46.59850707]
[1734554126100,46.59850707,209.27,209.18,46.59850707]
[1734554126303,46.59850707,209.29,209.2,46.59850707]
[1734554126605,46.59850707,209.33,209.25,0.12549]
[1734554126793,46.59850707,209.47,209.27,0.12549]
[1734554127100,19.093165,209.59,209.29,7.9905]
[1734554127278,46.59850707,209.47,209.36,46.59850707]
[1734554127474,19.093165,209.59,209.4,46.59850707]
[1734554127672,46.59850707,209.51,209.43,0.12549]
[1734554127903,46.59850707,209.57,209.48,46.59850707]
[1734554128102,46.59850707,209.55,209.46,46.59850707]
[1734554128283,46.59850707,209.59,209.5,46.59850707]
[1734554128487,46.59850707,209.63,209.55,46.59850707]
[1734554128687,46.59850707,209.65,209.49,0.12549]
[1734554128894,46.59850707,209.65,209.57,46.59850707]
[1734554129284,46.59850707,209.65,209.55,46.59850707]
[1734554129483,46.59850707,209.63,209.53,46.59850707]
[1734554129798,46.59850707,209.61,209.53,46.59850707]
[1734554130000,46.59850707,209.54,209.45,46.59850707]
[1734554130174,46.59850707,209.5,209.41,46.59850707]
[1734554130377,0.12549,209.65,209.43,46.59850707]
[1734554130703,46.59850707,209.58,209.47,46.59850707]
[1734554131093,46.59850707,209.62,209.51,46.59850707]
[1734554131274,0.7256321,209.71,209.45,0.71571029]
[1734554131483,46.59850707,209.65,209.55,46.59850707]
[1734554131819,46.59850707,209.57,209.47,70.37539107]
[1734554131986,46.59850707,209.57,209.47,46.59850707]
[1734554132191,46.59850707,209.53,209.43,46.59850707]
[1734554132501,46.59850707,209.55,209.45,46.59850707]
[1734554132815,46.59850707,209.59,209.51,46.59850707]
[1734554133014,46.59850707,209.59,209.44,46.59850707]
[1734554133219,46.59850707,209.57,209.47,46.59850707]
[1734554133514,0.7256321,209.71,209.47,46.59850707]
[1734554133515,46.59850707,209.65,209.55,46.59850707]
[1734554133679,46.59850707,209.61,209.51,46.59850707]
[1734554133883,46.59850707,209.57,209.48,23.776884]
[1734554134083,46.59850707,209.61,209.51,46.59850707]
[1734554134307,0.7256321,209.71,209.55,20.0]
[1734554134613,0.7256321,209.71,209.52,8.2759]
[1734554134614,0.7256321,209.71,209.64,46.59850707]
[1734554134815,0.7256321,209.71,209.62,46.59850707]
[1734554134816,47.32413917,209.71,209.62,46.59850707]
[1734554135144,0.7256321,209.71,209.58,20.0]
[1734554135281,0.7256321,209.71,209.7,46.59850707]
[1734554135482,0.7256321,209.71,209.65,20.0]
[1734554135690,0.7256321,209.71,209.6,23.776884]
[1734554136013,47.32413917,209.71,209.61,46.59850707]
[1734554136323,47.32413917,209.71,209.62,20.0]
[1734554136609,0.7256321,209.71,209.65,46.59850707]
[1734554136818,0.7256321,209.71,209.67,46.59850707]
[1734554136979,0.7256321,209.71,209.7,0.12549]
[1734554137179,0.7256321,209.71,209.65,46.59850707]
[1734554137606,47.32413917,209.71,209.61,46.59850707]
[1734554137786,12.04719,209.7,209.44,58.53460707]
[1734554137986,12.04719,209.7,209.48,0.71569449]
[1734554138182,46.59850707,209.68,209.58,46.59850707]
[1734554138381,0.7256321,209.71,209.6,46.59850707]
[1734554138604,0.7256321,209.71,209.66,46.59850707]
[1734554138935,0.7256321,209.71,209.7,46.72399707]
[1734554139135,2.84132647,209.94,209.74,0.12549]
[1734554139444,46.59850707,209.9,209.82,46.59850707]
[1734554139606,46.59850707,209.99,209.78,46.59850707]
[1734554139607,46.59850707,209.88,209.78,46.59850707]
[1734554139813,46.59850707,209.9,209.82,46.59850707]
[1734554140009,46.59850707,209.96,209.86,46.59850707]
[1734554140227,46.59850707,209.94,209.84,46.59850707]
[1734554140936,46.59850707,209.88,209.78,46.59850707]
[1734554141711,46.59850707,209.82,209.74,46.59850707]
[1734554141909,46.59850707,209.9,209.8,46.59850707]
[1734554142110,46.59850707,209.94,209.84,46.59850707]
[1734554142643,46.59850707,209.92,209.84,46.59850707]
[1734554142825,46.59850707,209.9,209.82,46.59850707]
[1734554143031,46.59850707,209.92,209.83,23.776884]
[1734554143338,23.27471715,209.74,209.48,8.0496]
[1734554143509,46.59850707,209.5,209.4,46.59850707]
[1734554143844,23.93838851,209.71,209.41,0.71592318]
[1734554143845,44.35,209.71,209.41,0.71592318]
[1734554144021,44.35,209.71,209.36,8.0496]
[1734554144348,43.902374,209.59,209.39,2.83462815]
[1734554144635,23.776884,209.59,209.39,3.55064687]
[1734554144838,46.59850707,209.53,209.43,46.59850707]
[1734554145014,46.59850707,209.53,209.44,0.71587511]
[1734554145210,46.59850707,209.51,209.43,46.59850707]
[1734554145742,23.776884,209.43,209.19,12.0248]
[1734554145914,46.59850707,209.31,209.26,2.83518454]
[1734554146111,46.59850707,209.37,209.27,46.59850707]
[1734554146418,46.59850707,209.39,209.29,46.59850707]
[1734554146745,46.59850707,209.35,209.25,46.59850707]
[1734554147047,46.59850707,209.31,209.23,46.59850707]
[1734554147218,46.59850707,209.31,209.21,46.59850707]
[1734554147411,46.59850707,209.31,209.2,8.837286]
[1734554147412,46.59850707,209.25,209.2,8.1207]
[1734554147740,46.59850707,209.21,209.09,46.59850707]
[1734554147927,46.59850707,209.33,209.09,46.59850707]
[1734554147928,46.59850707,209.19,209.09,47.31550945]
[1734554148240,46.59850707,209.25,209.15,46.59850707]
[1734554148444,46.59850707,209.23,209.15,46.59850707]
[1734554148624,49.52239814,209.33,209.15,46.59850707]
[1734554148625,46.59850707,209.25,209.15,46.59850707]
[1734554148938,46.59850707,209.23,209.15,46.59850707]
[1734554149142,46.59850707,209.33,209.17,46.59850707]
[1734554149317,46.59850707,209.34,209.26,0.12549]